fUST/lending_fUST_20241021
["ID","MTS","AMOUNT","RATE_DAILY","PERIOD"]
[340578803,1729509038486,-19170.6747383,0.00016408,2]
[340578804,1729509038498,-376.86087223,0.00016417,2]
[340578805,1729509038507,-415.12704626,0.00016417,2]
[340578806,1729509038517,-417.86369634,0.00016417,2]
[340578807,1729509038528,-500.0,0.00016417,2]
[340578808,1729509038538,-500.0,0.00016417,2]
[340578809,1729509038548,-500.0,0.00016417,2]
[340578810,1729509038558,-500.0,0.00016417,2]
[340578811,1729509038570,-500.0,0.00016417,2]
[340578812,1729509038580,-500.0,0.00016417,2]
[340578813,1729509038591,-500.0,0.00016417,2]
[340578814,1729509038600,-584.69594035,0.00016417,2]
[340578815,1729509038610,-412.52907473,0.00016417,2]
[340578816,1729509038619,-500.0,0.00016417,2]
[340578817,1729509038629,-500.0,0.00016417,2]
[340578818,1729509038638,-500.0,0.00016417,2]
[340578819,1729509038648,-500.0,0.00016417,2]
[340578820,1729509038658,-300.0,0.00016417,2]
[340578822,1729509038668,-108809.026363,0.00016418,2]
[340578824,1729509038677,-51121.7993021,0.00016418,2]
[340578825,1729509038687,-500.0,0.00016427,2]
[340578826,1729509038696,-225.8665522,0.00016428,2]
[340578827,1729509038706,-189.013,0.00016428,2]
[340578828,1729509038715,-68005.6414769,0.00016428,2]
[340578829,1729509038724,-57512.0242148,0.00016428,2]
[340578830,1729509038735,-150.26699583,0.00016437,2]
[340578831,1729509038744,-945.65950739,0.00016437,2]
[340578832,1729509038754,-3386.13417068,0.00016438,2]
[340578833,1729509038763,-500.0,0.00016438,2]
[340578834,1729509038773,-500.0,0.00016438,2]
[340578835,1729509038782,-500.0,0.00016438,2]
[340578836,1729509038791,-510.88579333,0.00016438,2]
[340578837,1729509038801,-500.0,0.00016438,2]
[340578838,1729509038811,-500.0,0.00016438,2]
[340578839,1729509038821,-501.51459694,0.00016438,2]
[340578840,1729509038831,-500.55522641,0.00016438,2]
[340578841,1729509038841,-501.43484337,0.00016438,2]
[340578842,1729509038851,-500.0,0.00016438,2]
[340578843,1729509038860,-500.0,0.00016438,2]
[340578844,1729509038870,-500.0,0.00016438,2]
[340578845,1729509038880,-500.78134076,0.00016438,2]
[340578846,1729509038890,-155.42304752,0.00016438,2]
[340578847,1729509038899,-500.0,0.00016438,2]
[340578848,1729509038910,-500.0,0.00016438,2]
[340578849,1729509038919,-500.0,0.00016438,2]
[340578850,1729509038929,-500.0,0.00016438,2]
[340578851,1729509038939,-500.0,0.00016438,2]
[340578852,1729509038949,-514.6940696,0.00016438,2]
[340578853,1729509038958,-500.0,0.00016438,2]
[340578854,1729509038969,-500.0,0.00016438,2]
[340578855,1729509038978,-500.0,0.00016438,2]
[340578856,1729509038988,-500.0,0.00016438,2]
[340578857,1729509038998,-500.29953849,0.00016438,2]
[340578858,1729509039007,-500.0,0.00016438,2]
[340578859,1729509039016,-500.73707659,0.00016438,2]
[340578860,1729509039027,-500.0,0.00016438,2]
[340578861,1729509039037,-500.0,0.00016438,2]
[340578862,1729509039046,-500.0,0.00016438,2]
[340578863,1729509039055,-500.0,0.00016438,2]
[340578864,1729509039065,-186.25252386,0.00016438,2]
[340578865,1729509039075,-500.0,0.00016438,2]
[340578866,1729509039085,-500.0,0.00016438,2]
[340578867,1729509039095,-262.83778493,0.00016438,2]
[340578868,1729509039106,-500.0,0.00016438,2]
[340578869,1729509039116,-500.0,0.00016438,2]
[340578870,1729509039125,-500.0,0.00016438,2]
[340578871,1729509039136,-500.0,0.00016438,2]
[340578872,1729509039146,-2307.97,0.00016438,2]
[340578873,1729509039156,-500.0,0.00016438,2]
[340578874,1729509039166,-500.0,0.00016438,2]
[340578875,1729509039175,-500.0,0.00016438,2]
[340578876,1729509039185,-500.0,0.00016438,2]
[340578877,1729509039194,-500.0,0.00016438,2]
[340578878,1729509039204,-500.0,0.00016438,2]
[340578879,1729509039213,-500.0,0.00016438,2]
[340578880,1729509039223,-500.0,0.00016438,2]
[340578881,1729509039233,-500.0,0.00016438,2]
[340578882,1729509039242,-500.0,0.00016438,2]
[340578883,1729509039251,-500.0,0.00016438,2]
[340578884,1729509039260,-500.0,0.00016438,2]
[340578885,1729509039270,-1368.24,0.00016438,2]
[340578886,1729509039279,-500.0,0.00016438,2]
[340578887,1729509039289,-443.39540687,0.00016438,2]
[340578888,1729509039299,-500.0,0.00016438,2]
[340578889,1729509039308,-500.0,0.00016438,2]
[340578890,1729509039318,-500.0,0.00016438,2]
[340578891,1729509039327,-500.0,0.00016438,2]
[340578892,1729509039336,-771.77,0.00016438,2]
[340578893,1729509039345,-500.0,0.00016438,2]
[340578894,1729509039355,-940.92,0.00016438,2]
[340578895,1729509039364,-500.0,0.00016438,2]
[340578896,1729509039374,-500.0,0.00016438,2]
[340578897,1729509039383,-500.0,0.00016438,2]
[340578898,1729509039392,-500.0,0.00016438,2]
[340578899,1729509039401,-500.45812343,0.00016438,2]
[340578900,1729509039411,-500.0,0.00016438,2]
[340578901,1729509039420,-500.0,0.00016438,2]
[340578902,1729509039430,-500.0,0.00016438,2]
[340578903,1729509039439,-541.37259021,0.00016438,2]
[340578904,1729509039450,-500.0,0.00016438,2]
[340578905,1729509039459,-500.0,0.00016438,2]
[340578906,1729509039469,-207.4812873,0.00016438,2]
[340578907,1729509039479,-500.0,0.00016438,2]
[340578908,1729509039493,-500.0,0.00016438,2]
[340578909,1729509039503,-465.39530781,0.00016438,2]
[340578910,1729509039512,-500.0,0.00016438,2]
[340578911,1729509039522,-1853.55,0.00016438,2]
[340578912,1729509039533,-500.0,0.00016438,2]
[340578913,1729509039543,-379.89329065,0.00016438,2]
[340578914,1729509039552,-500.0,0.00016438,2]
[340578915,1729509039562,-1018.44,0.00016438,2]
[340578916,1729509039572,-500.0,0.00016438,2]
[340578917,1729509039581,-500.0,0.00016438,2]
[340578918,1729509039591,-500.0,0.00016438,2]
[340578919,1729509039601,-1146.47,0.00016438,2]
[340578920,1729509039611,-500.0,0.00016438,2]
[340578921,1729509039621,-736.29,0.00016438,2]
[340578922,1729509039631,-500.0,0.00016438,2]
[340578923,1729509039641,-677.78,0.00016438,2]
[340578924,1729509039650,-356.99677337,0.00016438,2]
[340578927,1729509039659,-151.0,0.00016438,2]
[340578930,1729509039669,-500.0,0.00016438,2]
[340578932,1729509039678,-500.0,0.00016438,2]
[340578933,1729509039688,-864.58,0.00016438,2]
[340578934,1729509039697,-500.0,0.00016438,2]
[340578935,1729509039707,-500.0,0.00016438,2]
[340578936,1729509039716,-500.0,0.00016438,2]
[340578937,1729509039726,-500.0,0.00016438,2]
[340578938,1729509039735,-500.0,0.00016438,2]
[340578939,1729509039745,-500.0,0.00016438,2]
[340578940,1729509039754,-500.0,0.00016438,2]
[340578941,1729509039764,-500.0,0.00016438,2]
[340578942,1729509039773,-500.0,0.00016438,2]
[340578944,1729509039783,-151.0,0.00016438,2]
[340578945,1729509039793,-1229.15,0.00016438,2]
[340578946,1729509039803,-500.0,0.00016438,2]
[340578947,1729509039812,-500.0,0.00016438,2]
[340578948,1729509039821,-151.0,0.00016438,2]
[340578949,1729509039831,-500.0,0.00016438,2]
[340578950,1729509039844,-500.0,0.00016438,2]
[340578951,1729509039854,-500.0,0.00016438,2]
[340578952,1729509039863,-500.0,0.00016438,2]
[340578953,1729509039872,-500.0,0.00016438,2]
[340578954,1729509039882,-500.0,0.00016438,2]
[340578955,1729509039892,-500.0,0.00016438,2]
[340578956,1729509039902,-500.0,0.00016438,2]
[340578957,1729509039911,-500.0,0.00016438,2]
[340578958,1729509039921,-151.0,0.00016438,2]
[340578959,1729509039930,-500.0,0.00016438,2]
[340578960,1729509039940,-151.0,0.00016438,2]
[340578961,1729509039950,-500.0,0.00016438,2]
[340578962,1729509039959,-500.0,0.00016438,2]
[340578963,1729509039969,-500.0,0.00016438,2]
[340578964,1729509039978,-457.47019512,0.00016438,2]
[340578965,1729509039987,-500.0,0.00016438,2]
[340578966,1729509039997,-1774.4,0.00016438,2]
[340578967,1729509040007,-500.0,0.00016438,2]
[340578968,1729509040016,-500.0,0.00016438,2]
[340578969,1729509040026,-500.0,0.00016438,2]
[340578970,1729509040036,-500.0,0.00016438,2]
[340578971,1729509040045,-500.0,0.00016438,2]
[340578972,1729509040055,-691.18,0.00016438,2]
[340578973,1729509040065,-500.0,0.00016438,2]
[340578974,1729509040074,-500.0,0.00016438,2]
[340578975,1729509040086,-1130.66,0.00016438,2]
[340578976,1729509040096,-500.0,0.00016438,2]
[340578977,1729509040105,-500.0,0.00016438,2]
[340578978,1729509040115,-500.0,0.00016438,2]
[340578979,1729509040125,-500.0,0.00016438,2]
[340578980,1729509040135,-500.0,0.00016438,2]
[340578981,1729509040144,-500.0,0.00016438,2]
[340578982,1729509040154,-500.0,0.00016438,2]
[340578983,1729509040164,-193.78135552,0.00016438,2]
[340578984,1729509040174,-516.08959275,0.00016438,2]
[340578985,1729509040183,-500.0,0.00016438,2]
[340578986,1729509040192,-500.0,0.00016438,2]
[340578987,1729509040202,-500.0,0.00016438,2]
[340578988,1729509040211,-500.0,0.00016438,2]
[340578989,1729509040221,-500.0,0.00016438,2]
[340578990,1729509040230,-1050.97,0.00016438,2]
[340578991,1729509040239,-500.0,0.00016438,2]
[340578992,1729509040250,-2012.11,0.00016438,2]
[340578993,1729509040260,-500.0,0.00016438,2]
[340578994,1729509040269,-500.0,0.00016438,2]
[340578995,1729509040279,-547.44,0.00016438,2]
[340578996,1729509040289,-871.41,0.00016438,2]
[340578997,1729509040298,-371.19203936,0.00016438,2]
[340578998,1729509040307,-500.0,0.00016438,2]
[340578999,1729509040318,-500.0,0.00016438,2]
[340579000,1729509040327,-497.79163688,0.00016438,2]
[340579001,1729509040339,-1092.22,0.00016438,2]
[340579002,1729509040349,-500.0,0.00016438,2]
[340579003,1729509040358,-500.0,0.00016438,2]
[340579004,1729509040367,-500.0,0.00016438,2]
[340579005,1729509040376,-533.38,0.00016438,2]
[340579006,1729509040386,-1117.22,0.00016438,2]
[340579007,1729509040396,-500.0,0.00016438,2]
[340579008,1729509040406,-500.0,0.00016438,2]
[340579009,1729509040416,-500.0,0.00016438,2]
[340579010,1729509040425,-171.27028219,0.00016438,2]
[340579011,1729509040435,-500.0,0.00016438,2]
[340579012,1729509040445,-500.0,0.00016438,2]
[340579013,1729509040454,-500.0,0.00016438,2]
[340579014,1729509040464,-500.0,0.00016438,2]
[340579015,1729509040473,-500.0,0.00016438,2]
[340579016,1729509040484,-1374.47,0.00016438,2]
[340579017,1729509040497,-500.0,0.00016438,2]
[340579018,1729509040507,-500.0,0.00016438,2]
[340579019,1729509040516,-500.0,0.00016438,2]
[340579020,1729509040526,-509.47770946,0.00016438,2]
[340579021,1729509040538,-500.0,0.00016438,2]
[340579022,1729509040547,-500.0,0.00016438,2]
[340579023,1729509040557,-165.14769849,0.00016438,2]
[340579024,1729509040568,-500.0,0.00016438,2]
[340579025,1729509040578,-500.0,0.00016438,2]
[340579026,1729509040588,-566.48,0.00016438,2]
[340579027,1729509040598,-500.0,0.00016438,2]
[340579028,1729509040608,-500.0,0.00016438,2]
[340579029,1729509040617,-500.0,0.00016438,2]
[340579030,1729509040627,-707.5,0.00016438,2]
[340579031,1729509040637,-500.0,0.00016438,2]
[340579032,1729509040646,-505.85788359,0.00016438,2]
[340579033,1729509040656,-857.9,0.00016438,2]
[340579034,1729509040665,-500.0,0.00016438,2]
[340579035,1729509040675,-500.0,0.00016438,2]
[340579036,1729509040684,-178.75565541,0.00016438,2]
[340579037,1729509040693,-500.0,0.00016438,2]
[340579038,1729509040702,-1185.03,0.00016438,2]
[340579039,1729509040712,-500.0,0.00016438,2]
[340579040,1729509040721,-530.99,0.00016438,2]
[340579041,1729509040730,-500.0,0.00016438,2]
[340579042,1729509040739,-500.0,0.00016438,2]
[340579043,1729509040749,-661.76,0.00016438,2]
[340579044,1729509040759,-752.84,0.00016438,2]
[340579045,1729509040768,-500.0,0.00016438,2]
[340579046,1729509040777,-500.0,0.00016438,2]
[340579047,1729509040786,-500.0,0.00016438,2]
[340579048,1729509040795,-500.0,0.00016438,2]
[340579049,1729509040805,-500.0,0.00016438,2]
[340579050,1729509040814,-151.0,0.00016438,2]
[340579051,1729509040823,-500.0,0.00016438,2]
[340579052,1729509040832,-500.0,0.00016438,2]
[340579053,1729509040843,-500.0,0.00016438,2]
[340579054,1729509040852,-1872.3,0.00016438,2]
[340579055,1729509040861,-500.0,0.00016438,2]
[340579056,1729509040871,-500.0,0.00016438,2]
[340579057,1729509040880,-500.0,0.00016438,2]
[340579058,1729509040889,-1381.84,0.00016438,2]
[340579059,1729509040899,-838.2,0.00016438,2]
[340579060,1729509040908,-500.0,0.00016438,2]
[340579061,1729509040917,-500.0,0.00016438,2]
[340579062,1729509040927,-1234.91,0.00016438,2]
[340579063,1729509040936,-508.51436058,0.00016438,2]
[340579064,1729509040946,-500.0,0.00016438,2]
[340579065,1729509040955,-500.0,0.00016438,2]
[340579066,1729509040965,-1998.0,0.00016438,2]
[340579067,1729509040974,-500.0,0.00016438,2]
[340579068,1729509040984,-500.0,0.00016438,2]
[340579069,1729509040994,-500.0,0.00016438,2]
[340579070,1729509041003,-844.84,0.00016438,2]
[340579071,1729509041013,-770.98,0.00016438,2]
[340579072,1729509041022,-500.0,0.00016438,2]
[340579073,1729509041033,-500.0,0.00016438,2]
[340579074,1729509041042,-500.0,0.00016438,2]
[340579075,1729509041052,-500.0,0.00016438,2]
[340579076,1729509041061,-500.0,0.00016438,2]
[340579077,1729509041071,-500.0,0.00016438,2]
[340579078,1729509041081,-916.77,0.00016438,2]
[340579079,1729509041093,-549.47534012,0.00016438,2]
[340579080,1729509041102,-1152.53,0.00016438,2]
[340579081,1729509041113,-530.83,0.00016438,2]
[340579082,1729509041122,-918.31,0.00016438,2]
[340579083,1729509041132,-500.0,0.00016438,2]
[340579084,1729509041141,-500.0,0.00016438,2]
[340579085,1729509041151,-500.0,0.00016438,2]
[340579086,1729509041160,-1842.15,0.00016438,2]
[340579087,1729509041169,-500.0,0.00016438,2]
[340579088,1729509041179,-826.09,0.00016438,2]
[340579089,1729509041188,-2803.89,0.00016438,2]
[340579090,1729509041198,-500.0,0.00016438,2]
[340579091,1729509041207,-1001.77,0.00016438,2]
[340579092,1729509041216,-151.0,0.00016438,2]
[340579093,1729509041226,-606.9,0.00016438,2]
[340579094,1729509041235,-500.0,0.00016438,2]
[340579095,1729509041244,-500.0,0.00016438,2]
[340579096,1729509041253,-500.0,0.00016438,2]
[340579097,1729509041263,-749.24,0.00016438,2]
[340579098,1729509041272,-500.0,0.00016438,2]
[340579099,1729509041282,-151.0,0.00016438,2]
[340579100,1729509041291,-608.84,0.00016438,2]
[340579101,1729509041300,-608.84,0.00016438,2]
[340579102,1729509041309,-608.84,0.00016438,2]
[340579103,1729509041319,-608.84,0.00016438,2]
[340579104,1729509041328,-608.84,0.00016438,2]
[340579105,1729509041338,-608.84,0.00016438,2]
[340579106,1729509041348,-608.84,0.00016438,2]
[340579107,1729509041357,-608.84,0.00016438,2]
[340579108,1729509041367,-608.84,0.00016438,2]
[340579109,1729509041376,-608.84,0.00016438,2]
[340579110,1729509041385,-608.84,0.00016438,2]
[340579111,1729509041395,-608.84,0.00016438,2]
[340579112,1729509041404,-608.84,0.00016438,2]
[340579113,1729509041413,-608.84,0.00016438,2]
[340579114,1729509041423,-608.84,0.00016438,2]
[340579115,1729509041433,-608.84,0.00016438,2]
[340579116,1729509041442,-608.84,0.00016438,2]
[340579117,1729509041452,-608.84,0.00016438,2]
[340579118,1729509041461,-608.84,0.00016438,2]
[340579119,1729509041470,-608.84,0.00016438,2]
[340579120,1729509041479,-608.84,0.00016438,2]
[340579121,1729509041491,-608.84,0.00016438,2]
[340579122,1729509041500,-608.84,0.00016438,2]
[340579123,1729509041510,-608.91441452,0.00016438,2]
[340579124,1729509041519,-500.0,0.00016438,2]
[340579125,1729509041530,-213.07866943,0.00016438,2]
[340579126,1729509041539,-500.0,0.00016438,2]
[340579127,1729509041549,-212.96479063,0.00016438,2]
[340579128,1729509041559,-500.0,0.00016438,2]
[340579129,1729509041569,-1042.42,0.00016438,2]
[340579130,1729509041578,-500.0,0.00016438,2]
[340579131,1729509041588,-542.84091426,0.00016438,2]
[340579132,1729509041801,-503.07827068,0.00016438,2]
[340579133,1729509041811,-501.34761856,0.00016438,2]
[340579134,1729509041820,-500.0,0.00016438,2]
[340579135,1729509041829,-500.0,0.00016438,2]
[340579136,1729509041839,-500.0,0.00016438,2]
[340579137,1729509041848,-500.0,0.00016438,2]
[340579138,1729509041857,-500.0,0.00016438,2]
[340579139,1729509041867,-500.0,0.00016438,2]
[340579140,1729509041875,-1140.72,0.00016438,2]
[340579141,1729509041885,-500.0,0.00016438,2]
[340579142,1729509041894,-501.15158359,0.00016438,2]
[340579143,1729509041903,-500.0,0.00016438,2]
[340579144,1729509041912,-500.0,0.00016438,2]
[340579145,1729509041921,-684.6,0.00016438,2]
[340579146,1729509041930,-1342.09,0.00016438,2]
[340579147,1729509041939,-1325.65,0.00016438,2]
[340579148,1729509041949,-500.0,0.00016438,2]
[340579149,1729509041958,-151.0,0.00016438,2]
[340579150,1729509041967,-2720.41,0.00016438,2]
[340579151,1729509041976,-305.22878819,0.00016438,2]
[340579152,1729509041986,-500.0,0.00016438,2]
[340579153,1729509041994,-500.0,0.00016438,2]
[340579154,1729509042004,-2548.82,0.00016438,2]
[340579155,1729509042013,-2036.97,0.00016438,2]
[340579156,1729509042022,-500.0,0.00016438,2]
[340579157,1729509042033,-181.333484,0.00016438,2]
[340579158,1729509042042,-500.0,0.00016438,2]
[340579159,1729509042052,-205.18910441,0.00016438,2]
[340579160,1729509042061,-500.0,0.00016438,2]
[340579161,1729509042071,-500.0,0.00016438,2]
[340579162,1729509042080,-500.0,0.00016438,2]
[340579163,1729509042091,-2838.19,0.00016438,2]
[340579164,1729509042101,-500.0,0.00016438,2]
[340579165,1729509042110,-500.0,0.00016438,2]
[340579166,1729509042120,-1922.58,0.00016438,2]
[340579167,1729509042129,-500.0,0.00016438,2]
[340579168,1729509042141,-500.0,0.00016438,2]
[340579169,1729509042150,-500.0,0.00016438,2]
[340579170,1729509042159,-557.10940043,0.00016438,2]
[340579171,1729509042168,-1053.88,0.00016438,2]
[340579172,1729509042177,-575.39,0.00016438,2]
[340579173,1729509042187,-500.0,0.00016438,2]
[340579174,1729509042196,-500.0,0.00016438,2]
[340579175,1729509042206,-500.0,0.00016438,2]
[340579176,1729509042215,-1318.49,0.00016438,2]
[340579177,1729509042224,-510.62484345,0.00016438,2]
[340579178,1729509042233,-1777.41,0.00016438,2]
[340579179,1729509042242,-500.0,0.00016438,2]
[340579180,1729509042251,-405.53145669,0.00016438,2]
[340579181,1729509042261,-500.0,0.00016438,2]
[340579182,1729509042269,-241.41665915,0.00016438,2]
[340579183,1729509042279,-500.77455274,0.00016438,2]
[340579184,1729509042288,-533.07852198,0.00016438,2]
[340579185,1729509042296,-500.0,0.00016438,2]
[340579186,1729509042306,-500.0,0.00016438,2]
[340579187,1729509042315,-795.31,0.00016438,2]
[340579188,1729509042323,-500.0,0.00016438,2]
[340579189,1729509042332,-500.0,0.00016438,2]
[340579190,1729509042343,-500.0,0.00016438,2]
[340579191,1729509042353,-566.92533978,0.00016438,2]
[340579192,1729509042362,-501.5623383,0.00016438,2]
[340579193,1729509042371,-500.0,0.00016438,2]
[340579194,1729509042380,-500.0,0.00016438,2]
[340579195,1729509042389,-843.49,0.00016438,2]
[340579196,1729509042399,-697.0,0.00016438,2]
[340579197,1729509042408,-184.2546354,0.00016438,2]
[340579198,1729509042417,-1682.75,0.00016438,2]
[340579199,1729509042426,-886.98,0.00016438,2]
[340579200,1729509042435,-151.0,0.00016438,2]
[340579201,1729509042444,-500.0,0.00016438,2]
[340579202,1729509042453,-500.0,0.00016438,2]
[340579203,1729509042462,-1931.58,0.00016438,2]
[340579204,1729509042472,-299.57837491,0.00016438,2]
[340579205,1729509042481,-217.007914,0.00016438,2]
[340579206,1729509042493,-500.0,0.00016438,2]
[340579207,1729509042503,-1133.9,0.00016438,2]
[340579208,1729509042512,-539.78,0.00016438,2]
[340579209,1729509042521,-507.59457642,0.00016438,2]
[340579210,1729509042533,-500.0,0.00016438,2]
[340579211,1729509042542,-500.0,0.00016438,2]
[340579212,1729509042551,-780.39,0.00016438,2]
[340579213,1729509042563,-500.0,0.00016438,2]
[340579214,1729509042574,-500.0,0.00016438,2]
[340579215,1729509042583,-500.0,0.00016438,2]
[340579216,1729509042593,-500.0,0.00016438,2]
[340579217,1729509042602,-500.0,0.00016438,2]
[340579218,1729509042612,-500.0,0.00016438,2]
[340579219,1729509042622,-1667.95,0.00016438,2]
[340579220,1729509042631,-1747.61,0.00016438,2]
[340579221,1729509042640,-500.0,0.00016438,2]
[340579222,1729509042649,-500.0,0.00016438,2]
[340579223,1729509042659,-500.0,0.00016438,2]
[340579224,1729509042668,-974.77,0.00016438,2]
[340579225,1729509042677,-500.0,0.00016438,2]
[340579226,1729509042686,-151.0,0.00016438,2]
[340579227,1729509042695,-500.0,0.00016438,2]
[340579228,1729509042705,-2466.02,0.00016438,2]
[340579230,1729509042714,-580.98694222,0.00016438,2]
[340579231,1729509042723,-501.05908773,0.00016438,2]
[340579232,1729509042732,-500.0,0.00016438,2]
[340579233,1729509042742,-500.0,0.00016438,2]
[340579234,1729509042751,-1755.31,0.00016438,2]
[340579235,1729509042760,-500.0,0.00016438,2]
[340579237,1729509042769,-500.0,0.00016438,2]
[340579238,1729509042779,-500.0,0.00016438,2]
[340579239,1729509042788,-500.0,0.00016438,2]
[340579240,1729509042797,-500.0,0.00016438,2]
[340579241,1729509042806,-2009.5,0.00016438,2]
[340579243,1729509042815,-500.0,0.00016438,2]
[340579244,1729509042825,-500.0,0.00016438,2]
[340579245,1729509042835,-1258.95,0.00016438,2]
[340579246,1729509042845,-500.0,0.00016438,2]
[340579247,1729509042854,-500.0,0.00016438,2]
[340579248,1729509042863,-1654.01,0.00016438,2]
[340579249,1729509042873,-500.0,0.00016438,2]
[340579250,1729509042882,-976.85,0.00016438,2]
[340579251,1729509042891,-2283.65,0.00016438,2]
[340579252,1729509042901,-222.92,0.00016438,2]
[340579253,1729509042910,-1385.96,0.00016438,2]
[340579254,1729509042919,-500.0,0.00016438,2]
[340579255,1729509042929,-1249.16,0.00016438,2]
[340579256,1729509042938,-500.0,0.00016438,2]
[340579257,1729509042948,-917.24,0.00016438,2]
[340579258,1729509042957,-2282.57,0.00016438,2]
[340579259,1729509042967,-938.14,0.00016438,2]
[340579260,1729509042977,-500.0,0.00016438,2]
[340579261,1729509042986,-500.0,0.00016438,2]
[340579263,1729509043000,-151.0,0.00016438,2]
[340579265,1729509043009,-500.0,0.00016438,2]
[340579267,1729509043019,-500.0,0.00016438,2]
[340579268,1729509043028,-500.0,0.00016438,2]
[340579269,1729509043038,-505.84243887,0.00016438,2]
[340579270,1729509043047,-500.0,0.00016438,2]
[340579271,1729509043057,-505.11202141,0.00016438,2]
[340579272,1729509043067,-867.59,0.00016438,2]
[340579273,1729509043076,-1915.53,0.00016438,2]
[340579274,1729509043087,-575.09630823,0.00016438,2]
[340579275,1729509043098,-500.0,0.00016438,2]
[340579276,1729509043107,-500.0,0.00016438,2]
[340579277,1729509043117,-500.0,0.00016438,2]
[340579278,1729509043127,-500.0,0.00016438,2]
[340579279,1729509043136,-500.0,0.00016438,2]
[340579280,1729509043145,-500.0,0.00016438,2]
[340579281,1729509043155,-769.23,0.00016438,2]
[340579282,1729509043165,-570.68085499,0.00016438,2]
[340579283,1729509043175,-500.0,0.00016438,2]
[340579285,1729509043185,-1247.31,0.00016438,2]
[340579286,1729509043194,-500.0,0.00016438,2]
[340579287,1729509043203,-500.0,0.00016438,2]
[340579288,1729509043213,-500.0,0.00016438,2]
[340579289,1729509043222,-545.23962103,0.00016438,2]
[340579290,1729509043231,-151.0,0.00016438,2]
[340579291,1729509043241,-500.0,0.00016438,2]
[340579292,1729509043250,-500.0,0.00016438,2]
[340579293,1729509043260,-321.44456386,0.00016438,2]
[340579294,1729509043269,-987.15,0.00016438,2]
[340579295,1729509043279,-500.0,0.00016438,2]
[340579296,1729509043288,-500.0,0.00016438,2]
[340579297,1729509043297,-500.0,0.00016438,2]
[340579298,1729509043307,-2017.1,0.00016438,2]
[340579299,1729509043317,-1578.25,0.00016438,2]
[340579300,1729509043327,-500.0,0.00016438,2]
[340579301,1729509043338,-500.0,0.00016438,2]
[340579302,1729509043348,-500.0,0.00016438,2]
[340579303,1729509043358,-500.0,0.00016438,2]
[340579304,1729509043368,-599.24932482,0.00016438,2]
[340579305,1729509043378,-500.0,0.00016438,2]
[340579306,1729509043388,-500.0,0.00016438,2]
[340579307,1729509043398,-500.0,0.00016438,2]
[340579308,1729509043407,-500.0,0.00016438,2]
[340579309,1729509043418,-259.8842527,0.00016438,2]
[340579311,1729509043427,-3968.21,0.00016438,2]
[340579312,1729509043437,-650.91,0.00016438,2]
[340579313,1729509043447,-1657.83,0.00016438,2]
[340579314,1729509043459,-500.0,0.00016438,2]
[340579315,1729509043469,-500.0,0.00016438,2]
[340579316,1729509043480,-837.97,0.00016438,2]
[340579317,1729509043491,-151.0,0.00016438,2]
[340579318,1729509043502,-1407.42,0.00016438,2]